Workbook

Sheet 进入面试人员总成绩
A1: 附件：1
A2: 西秀区2019年上半年面向社会公开招聘事业单位工作人员总成绩
A3: 序号 | B3: 姓名 | C3: 准考证号 | D3: 报考单位及代码 | E3: 报考职位及代码 | F3: 拟招聘人数 | G3: 笔试成绩 | H3: 笔试成绩折合分（60%） | I3: 面试考场 | J3: 面试成绩 | K3: 面试考场实考平均分 | L3: 面试成绩折合分（40%） | M3: 总成绩 | N3: 备注
A4: 1 | B4: 梁红梅 | C4: 10125041330 | D4: 120西秀区旧州镇科技宣教文化信息服务中心 | E4: 01管理人员 | F4: 1 | G4: 99 | H4: 39.60 | I4: 第01考场 | J4: 80.40 | K4: 74.82 | L4: 32.16 | M4: =H4+L4 -> 71.76
A5: 2 | B5: 王艳丽 | C5: 10125034815 | D5: 120西秀区旧州镇科技宣教文化信息服务中心 | E5: 01管理人员 | F5: 1 | G5: 98 | H5: 39.20 | I5: 第01考场 | J5: 80.40 | K5: 74.82 | L5: 32.16 | M5: 71.36
A6: 3 | B6: 何青 | C6: 10125030407 | D6: 120西秀区旧州镇科技宣教文化信息服务中心 | E6: 01管理人员 | F6: 1 | G6: 98 | H6: 39.20 | I6: 第01考场 | J6: 74.20 | K6: 74.82 | L6: 29.68 | M6: 68.88
A7: 4 | B7: 杨峰 | C7: 10125083125 | D7: 120西秀区旧州镇科技宣教文化信息服务中心 | E7: 01管理人员 | F7: 1 | G7: 98.5 | H7: 39.40 | I7: 第01考场 | J7: 67.20 | K7: 74.82 | L7: 26.88 | M7: 66.28
A8: 5 | B8: 张浪 | C8: 10125032023 | D8: 124西秀区双堡镇村镇建设管理站 | E8: 01管理人员 | F8: 1 | G8: 99 | H8: 39.60 | I8: 第01考场 | J8: 78.00 | K8: 74.82 | L8: 31.20 | M8: 70.80
A9: 6 | B9: 周泽毅 | C9: 10125063603 | D9: 124西秀区双堡镇村镇建设管理站 | E9: 01管理人员 | F9: 1 | G9: 100 | H9: 40.00 | I9: 第01考场 | J9: 75.00 | K9: 74.82 | L9: 30.00 | M9: 70.00
A10: 7 | B10: 张耘铭 | C10: 10125064101 | D10: 124西秀区双堡镇村镇建设管理站 | E10: 01管理人员 | F10: 1 | G10: 98.5 | H10: 39.40 | I10: 第01考场 | J10: 缺考 | K10: 74.82
A11: 8 | B11: 罗荥略 | C11: 10125052511 | D11: 125西秀区大西桥镇村镇建设管理站 | E11: 01管理人员 | F11: 1 | G11: 91.5 | H11: 36.60 | I11: 第01考场 | J11: 84.80 | K11: 74.82 | L11: 33.92 | M11: =H11+L11 -> 70.52
A12: 9 | B12: 胡洪浪 | C12: 10125064322 | D12: 125西秀区大西桥镇村镇建设管理站 | E12: 01管理人员 | F12: 1 | G12: 90.5 | H12: 36.20 | I12: 第01考场 | J12: 72.00 | K12: 74.82 | L12: 28.80 | M12: =H12+L12 -> 65.00
A13: 10 | B13: 彭洋 | C13: 10125082127 | D13: 125西秀区大西桥镇村镇建设管理站 | E13: 01管理人员 | F13: 1 | G13: 90 | H13: 36.00 | I13: 第01考场 | J13: 69.20 | K13: 74.82 | L13: 27.68 | M13: =H13+L13 -> 63.68
A14: 11 | B14: 邵新 | C14: 10125037624 | D14: 126西秀区财政局大西桥镇分局 | E14: 01管理人员 | F14: 1 | G14: 115 | H14: 46.00 | I14: 第01考场 | J14: 65.80 | K14: 74.82 | L14: 26.32 | M14: =H14+L14 -> 72.32
A15: 12 | B15: 高雪 | C15: 10125070211 | D15: 126西秀区财政局大西桥镇分局 | E15: 01管理人员 | F15: 1 | G15: 98 | H15: 39.20 | I15: 第01考场 | J15: 68.80 | K15: 74.82 | L15: 27.52 | M15: =H15+L15 -> 66.72
A16: 13 | B16: 龙杰 | C16: 10125074211 | D16: 126西秀区财政局大西桥镇分局 | E16: 01管理人员 | F16: 1 | G16: 101 | H16: 40.40 | I16: 第01考场 | J16: 缺考 | K16: 74.82
A17: 14 | B17: 张钊 | C17: 10125050505 | D17: 127西秀区大西桥镇人力资源和社会保障服务中心 | E17: 01管理人员 | F17: 1 | G17: 104.5 | H17: 41.80 | I17: 第01考场 | J17: 85.00 | K17: 74.82 | L17: 34.00 | M17: =H17+L17 -> 75.80
A18: 15 | B18: 黄洪涛 | C18: 10125011304 | D18: 127西秀区大西桥镇人力资源和社会保障服务中心 | E18: 01管理人员 | F18: 1 | G18: 104.5 | H18: 41.80 | I18: 第01考场 | J18: 79.20 | K18: 74.82 | L18: 31.68 | M18: 73.48
A19: 16 | B19: 李江湖 | C19: 10125061513 | D19: 127西秀区大西桥镇人力资源和社会保障服务中心 | E19: 01管理人员 | F19: 1 | G19: 102.5 | H19: 41.00 | I19: 第01考场 | J19: 79.80 | K19: 74.82 | L19: 31.92 | M19: 72.92
A20: 17 | B20: 王杰 | C20: 10125050717 | D20: 128西秀区轿子山镇科技宣教文化信息服务中心 | E20: 01管理人员 | F20: 1 | G20: 106 | H20: 42.40 | I20: 第01考场 | J20: 76.00 | K20: 74.82 | L20: 30.40 | M20: 72.80
A21: 18 | B21: 李林 | C21: 10125082423 | D21: 128西秀区轿子山镇科技宣教文化信息服务中心 | E21: 01管理人员 | F21: 1 | G21: 100 | H21: 40.00 | I21: 第01考场 | J21: 80.60 | K21: 74.82 | L21: 32.24 | M21: 72.24
A22: 19 | B22: 尹珂 | C22: 10125061102 | D22: 128西秀区轿子山镇科技宣教文化信息服务中心 | E22: 01管理人员 | F22: 1 | G22: 97.5 | H22: 39.00 | I22: 第01考场 | J22: 68.80 | K22: 74.82 | L22: 27.52 | M22: 66.52
A23: 20 | B23: 周百万 | C23: 10125034422 | D23: 130西秀区岩腊苗族布依族乡人力资源和社会保障服务中心 | E23: 01管理人员 | F23: 1 | G23: 83.5 | H23: 33.40 | I23: 第01考场 | J23: 75.80 | K23: 74.82 | L23: 30.32 | M23: 63.72
A24: 21 | B24: 曹婷 | C24: 10125082811 | D24: 130西秀区岩腊苗族布依族乡人力资源和社会保障服务中心 | E24: 01管理人员 | F24: 1 | G24: 76.5 | H24: 30.60 | I24: 第01考场 | J24: 71.40 | K24: 74.82 | L24: 28.56 | M24: 59.16
A25: 22 | B25: 龙振风 | C25: 10125010716 | D25: 130西秀区岩腊苗族布依族乡人力资源和社会保障服务中心 | E25: 01管理人员 | F25: 1 | G25: 69.5 | H25: 27.80 | I25: 第01考场 | J25: 放弃 | K25: 74.82
A26: 23 | B26: 杨鑫 | C26: 10125091430 | D26: 131西秀区岩腊苗族布依族乡扶贫工作站 | E26: 01管理人员 | F26: 1 | G26: 96 | H26: 38.40 | I26: 第01考场 | J26: 78.80 | K26: 74.82 | L26: 31.52 | M26: =H26+L26 -> 69.92
A27: 24 | B27: 翁晓祥 | C27: 10125036828 | D27: 131西秀区岩腊苗族布依族乡扶贫工作站 | E27: 01管理人员 | F27: 1 | G27: 97 | H27: 38.80 | I27: 第01考场 | J27: 71.00 | K27: 74.82 | L27: 28.40 | M27: 67.20
A28: 25 | B28: 薛美州 | C28: 10125035512 | D28: 131西秀区岩腊苗族布依族乡扶贫工作站 | E28: 01管理人员 | F28: 1 | G28: 95 | H28: 38.00 | I28: 第01考场 | J28: 71.80 | K28: 74.82 | L28: 28.72 | M28: 66.72
A29: 26 | B29: 张姣 | C29: 10125021709 | D29: 147西秀区东关办事处头铺小学 | E29: 01专业技术人员 | F29: 1 | G29: 71 | H29: 28.40 | I29: 第01考场 | J29: 70.20 | K29: 74.82 | L29: 28.08 | M29: 56.48 | N29: 未达比例
A30: 27 | B30: 熊伟 | C30: 10125074713 | D30: 148西秀区杨武乡杨武小学 | E30: 01专业技术人员 | F30: 1 | G30: 81 | H30: 32.40 | I30: 第01考场 | J30: 74.40 | K30: 74.82 | L30: 29.76 | M30: 62.16 | N30: 未达比例
A31: 28 | B31: 潘双 | C31: 10125053030 | D31: 148西秀区杨武乡杨武小学 | E31: 01专业技术人员 | F31: 1 | G31: 69.5 | H31: 27.80 | I31: 第01考场 | J31: 71.80 | K31: 74.82 | L31: 28.72 | M31: 56.52 | N31: 未达比例
A32: 29 | B32: 莫娇 | C32: 10125041508 | D32: 105西秀区西街办事处科技宣教文化信息服务中心 | E32: 01管理人员 | F32: 1 | G32: 109.5 | H32: 43.80 | I32: 第02考场 | J32: 86.40 | K32: 85.54 | L32: 34.56 | M32: 78.36
A33: 30 | B33: 马妮 | C33: 10125074508 | D33: 105西秀区西街办事处科技宣教文化信息服务中心 | E33: 01管理人员 | F33: 1 | G33: 107.5 | H33: 43.00 | I33: 第02考场 | J33: 87.00 | K33: 85.54 | L33: 34.80 | M33: 77.80
A34: 31 | B34: 陈恒希 | C34: 10125075011 | D34: 105西秀区西街办事处科技宣教文化信息服务中心 | E34: 01管理人员 | F34: 1 | G34: 111 | H34: 44.40 | I34: 第02考场 | J34: 81.80 | K34: 85.54 | L34: 32.72 | M34: 77.12
A35: 32 | B35: 阳湘云 | C35: 10125033520 | D35: 107西秀区凤凰社区服务中心 | E35: 02管理人员 | F35: 1 | G35: 103 | H35: 41.20 | I35: 第02考场 | J35: 90.60 | K35: 85.54 | L35: 36.24 | M35: 77.44
A36: 33 | B36: 王浪 | C36: 10125081824 | D36: 107西秀区凤凰社区服务中心 | E36: 02管理人员 | F36: 1 | G36: 99.5 | H36: 39.80 | I36: 第02考场 | J36: 84.00 | K36: 85.54 | L36: 33.60 | M36: 73.40
A37: 34 | B37: 赵涵 | C37: 10125073425 | D37: 107西秀区凤凰社区服务中心 | E37: 02管理人员 | F37: 1 | G37: 99.5 | H37: 39.80 | I37: 第02考场 | J37: 82.60 | K37: 85.54 | L37: 33.04 | M37: 72.84
A38: 35 | B38: 郭秋君 | C38: 10125060908 | D38: 108西秀区马槽社区服务中心 | E38: 02管理人员 | F38: 1 | G38: 102 | H38: 40.80 | I38: 第02考场 | J38: 92.00 | K38: 85.54 | L38: 36.80 | M38: 77.60
A39: 36 | B39: 张青青 | C39: 10125063901 | D39: 108西秀区马槽社区服务中心 | E39: 02管理人员 | F39: 1 | G39: 102 | H39: 40.80 | I39: 第02考场 | J39: 89.00 | K39: 85.54 | L39: 35.60 | M39: 76.40
A40: 37 | B40: 谢居富 | C40: 10125081721 | D40: 108西秀区马槽社区服务中心 | E40: 02管理人员 | F40: 1 | G40: 102.5 | H40: 41.00 | I40: 第02考场 | J40: 88.20 | K40: 85.54 | L40: 35.28 | M40: 76.28
A41: 38 | B41: 吴松贤 | C41: 10125033228 | D41: 108西秀区马槽社区服务中心 | E41: 02管理人员 | F41: 1 | G41: 102.5 | H41: 41.00 | I41: 第02考场 | J41: 85.40 | K41: 85.54 | L41: 34.16 | M41: 75.16
A42: 39 | B42: 黄东梅 | C42: 10125036409 | D42: 109西秀区新太社区服务中心 | E42: 02管理人员 | F42: 1 | G42: 105 | H42: 42.00 | I42: 第02考场 | J42: 86.60 | K42: 85.54 | L42: 34.64 | M42: 76.64
A43: 40 | B43: 李珺 | C43: 10125071722 | D43: 109西秀区新太社区服务中心 | E43: 02管理人员 | F43: 1 | G43: 102.5 | H43: 41.00 | I43: 第02考场 | J43: 87.80 | K43: 85.54 | L43: 35.12 | M43: 76.12
A44: 41 | B44: 张喆渊 | C44: 10125062612 | D44: 109西秀区新太社区服务中心 | E44: 02管理人员 | F44: 1 | G44: 99.5 | H44: 39.80 | I44: 第02考场 | J44: 89.00 | K44: 85.54 | L44: 35.60 | M44: 75.40
A45: 42 | B45: 何永奎 | C45: 10125036303 | D45: 109西秀区新太社区服务中心 | E45: 01管理人员 | F45: 1 | G45: 101 | H45: 40.40 | I45: 第02考场 | J45: 87.20 | K45: 85.54 | L45: 34.88 | M45: 75.28
A46: 43 | B46: 宋俊贤 | C46: 10125030507 | D46: 109西秀区新太社区服务中心 | E46: 01管理人员 | F46: 1 | G46: 97 | H46: 38.80 | I46: 第02考场 | J46: 82.20 | K46: 85.54 | L46: 32.88 | M46: 71.68
A47: 44 | B47: 汪铎羡 | C47: 10125072229 | D47: 109西秀区新太社区服务中心 | E47: 01管理人员 | F47: 1 | G47: 107 | H47: 42.80 | I47: 第02考场 | J47: 缺考 | K47: 85.54
A48: 45 | B48: 莫毅 | C48: 10125036921 | D48: 110西秀区财政局东屯乡分局 | E48: 01管理人员 | F48: 1 | G48: 109.5 | H48: 43.80 | I48: 第02考场 | J48: 83.20 | K48: 85.54 | L48: 33.28 | M48: =H48+L48 -> 77.08
A49: 46 | B49: 卢希 | C49: 10125040208 | D49: 110西秀区财政局东屯乡分局 | E49: 01管理人员 | F49: 1 | G49: 97 | H49: 38.80 | I49: 第02考场 | J49: 87.80 | K49: 85.54 | L49: 35.12 | M49: 73.92
A50: 47 | B50: 卜燕平 | C50: 10125036829 | D50: 110西秀区财政局东屯乡分局 | E50: 01管理人员 | F50: 1 | G50: 91.5 | H50: 36.60 | I50: 第02考场 | J50: 86.80 | K50: 85.54 | L50: 34.72 | M50: 71.32
A51: 48 | B51: 杨健鹏 | C51: 10125061822 | D51: 111西秀区东屯乡科技宣教文化信息服务中心 | E51: 01管理人员 | F51: 1 | G51: 106 | H51: 42.40 | I51: 第02考场 | J51: 88.00 | K51: 85.54 | L51: 35.20 | M51: 77.60
A52: 49 | B52: 王小妮 | C52: 10125091616 | D52: 111西秀区东屯乡科技宣教文化信息服务中心 | E52: 01管理人员 | F52: 1 | G52: 103 | H52: 41.20 | I52: 第02考场 | J52: 88.80 | K52: 85.54 | L52: 35.52 | M52: 76.72
A53: 50 | B53: 朱松 | C53: 10125082927 | D53: 111西秀区东屯乡科技宣教文化信息服务中心 | E53: 01管理人员 | F53: 1 | G53: 105.5 | H53: 42.20 | I53: 第02考场 | J53: 85.40 | K53: 85.54 | L53: 34.16 | M53: 76.36
A54: 51 | B54: 方耘 | C54: 10125012901 | D54: 112西秀区东屯乡扶贫工作站 | E54: 01管理人员 | F54: 1 | G54: 99.5 | H54: 39.80 | I54: 第02考场 | J54: 89.00 | K54: 85.54 | L54: 35.60 | M54: 75.40
A55: 52 | B55: 熊丹 | C55: 10125021723 | D55: 112西秀区东屯乡扶贫工作站 | E55: 01管理人员 | F55: 1 | G55: 98 | H55: 39.20 | I55: 第02考场 | J55: 86.40 | K55: 85.54 | L55: 34.56 | M55: 73.76
A56: 53 | B56: 方开鑫 | C56: 10125071224 | D56: 112西秀区东屯乡扶贫工作站 | E56: 01管理人员 | F56: 1 | G56: 93.5 | H56: 37.40 | I56: 第02考场 | J56: 90.20 | K56: 85.54 | L56: 36.08 | M56: 73.48
A57: 54 | B57: 李林 | C57: 10125052413 | D57: 136西秀区杨武布依族苗族乡卫生院（妇幼保健计划生育服务站） | E57: 01专业技术人员 | F57: 1 | G57: 64 | H57: 25.60 | I57: 第02考场 | J57: 80.80 | K57: 85.54 | L57: 32.32 | M57: 57.92 | N57: 未达比例
A58: 55 | B58: 陶芬芳 | C58: 10125081928 | D58: 137西秀区鸡场乡卫生院（妇幼保健计划生育服务站） | E58: 01专业技术人员 | F58: 1 | G58: 74.5 | H58: 29.80 | I58: 第02考场 | J58: 78.80 | K58: 85.54 | L58: 31.52 | M58: 61.32 | N58: 未达比例
A59: 56 | B59: 王晓艺 | C59: 10125052619 | D59: 141西秀区轿子山镇卫生院（妇幼保健计划生育服务站） | E59: 01专业技术人员 | F59: 1 | G59: 61.5 | H59: 24.60 | I59: 第02考场 | J59: 81.60 | K59: 85.54 | L59: 32.64 | M59: 57.24 | N59: 未达比例
A60: 57 | B60: 谢尤会 | C60: 10125022922 | D60: 141西秀区轿子山镇卫生院（妇幼保健计划生育服务站） | E60: 01专业技术人员 | F60: 1 | G60: 68 | H60: 27.20 | I60: 第02考场 | J60: 68.40 | K60: 85.54 | L60: 27.36 | M60: 54.56 | N60: 未达比例
A61: 58 | B61: 叶方勇 | C61: 10125082311 | D61: 121西秀区旧州镇政务服务中心 | E61: 01管理人员 | F61: 1 | G61: 102.5 | H61: 41.00 | I61: 第03考场 | J61: 77.00 | K61: 73.25 | L61: 30.80 | M61: 71.80
A62: 59 | B62: 熊倩倩 | C62: 10125041716 | D62: 121西秀区旧州镇政务服务中心 | E62: 01管理人员 | F62: 1 | G62: 100.5 | H62: 40.20 | I62: 第03考场 | J62: 77.20 | K62: 73.25 | L62: 30.88 | M62: 71.08
A63: 60 | B63: 杨云飞 | C63: 10125092817 | D63: 121西秀区旧州镇政务服务中心 | E63: 01管理人员 | F63: 1 | G63: 101 | H63: 40.40 | I63: 第03考场 | J63: 76.20 | K63: 73.25 | L63: 30.48 | M63: 70.88
A64: 61 | B64: 杨彦龙 | C64: 10125030405 | D64: 121西秀区旧州镇政务服务中心 | E64: 01管理人员 | F64: 1 | G64: 100.5 | H64: 40.20 | I64: 第03考场 | J64: 76.40 | K64: 73.25 | L64: 30.56 | M64: 70.76
A65: 62 | B65: 夏科 | C65: 10125011706 | D65: 132西秀区七眼桥镇村镇建设管理站 | E65: 01管理人员 | F65: 1 | G65: 100 | H65: 40.00 | I65: 第03考场 | J65: 80.00 | K65: 73.25 | L65: 32.00 | M65: 72.00
A66: 63 | B66: 罗振东 | C66: 10125050604 | D66: 132西秀区七眼桥镇村镇建设管理站 | E66: 01管理人员 | F66: 1 | G66: 98 | H66: 39.20 | I66: 第03考场 | J66: 80.80 | K66: 73.25 | L66: 32.32 | M66: 71.52
A67: 64 | B67: 彭双 | C67: 10125051606 | D67: 132西秀区七眼桥镇村镇建设管理站 | E67: 01管理人员 | F67: 1 | G67: 98.5 | H67: 39.40 | I67: 第03考场 | J67: 74.60 | K67: 73.25 | L67: 29.84 | M67: 69.24
A68: 65 | B68: 唐萍 | C68: 10125034423 | D68: 133西秀区七眼桥镇科技宣教文化信息服务中心 | E68: 01管理人员 | F68: 1 | G68: 103.5 | H68: 41.40 | I68: 第03考场 | J68: 78.80 | K68: 73.25 | L68: 31.52 | M68: 72.92
A69: 66 | B69: 刘奇忠 | C69: 10125030213 | D69: 133西秀区七眼桥镇科技宣教文化信息服务中心 | E69: 01管理人员 | F69: 1 | G69: 102.5 | H69: 41.00 | I69: 第03考场 | J69: 79.60 | K69: 73.25 | L69: 31.84 | M69: 72.84
A70: 67 | B70: 赵涛 | C70: 10125073309 | D70: 133西秀区七眼桥镇科技宣教文化信息服务中心 | E70: 01管理人员 | F70: 1 | G70: 102 | H70: 40.80 | I70: 第03考场 | J70: 74.80 | K70: 73.25 | L70: 29.92 | M70: 70.72
A71: 68 | B71: 罗杰 | C71: 10125062920 | D71: 136西秀区杨武布依族苗族乡卫生院（妇幼保健计划生育服务站） | E71: 02专业技术人员 | F71: 1 | G71: 86 | H71: 34.40 | I71: 第03考场 | J71: 78.20 | K71: 73.25 | L71: 31.28 | M71: 65.68
A72: 69 | B72: 娄敏 | C72: 10125060501 | D72: 136西秀区杨武布依族苗族乡卫生院（妇幼保健计划生育服务站） | E72: 02专业技术人员 | F72: 1 | G72: 88.5 | H72: 35.40 | I72: 第03考场 | J72: 66.80 | K72: 73.25 | L72: 26.72 | M72: 62.12
A73: 70 | B73: 张叶青 | C73: 10125010528 | D73: 136西秀区杨武布依族苗族乡卫生院（妇幼保健计划生育服务站） | E73: 02专业技术人员 | F73: 1 | G73: 84.5 | H73: 33.80 | I73: 第03考场 | J73: 68.80 | K73: 73.25 | L73: 27.52 | M73: 61.32
A74: 71 | B74: 吴潇婧洁 | C74: 10125062123 | D74: 137西秀区鸡场乡卫生院（妇幼保健计划生育服务站） | E74: 02专业技术人员 | F74: 1 | G74: 89.5 | H74: 35.80 | I74: 第03考场 | J74: 78.00 | K74: 73.25 | L74: 31.20 | M74: 67.00
A75: 72 | B75: 谢孟何 | C75: 10125050611 | D75: 137西秀区鸡场乡卫生院（妇幼保健计划生育服务站） | E75: 02专业技术人员 | F75: 1 | G75: 89 | H75: 35.60 | I75: 第03考场 | J75: 71.40 | K75: 73.25 | L75: 28.56 | M75: 64.16
A76: 73 | B76: 王懿 | C76: 10125081908 | D76: 137西秀区鸡场乡卫生院（妇幼保健计划生育服务站） | E76: 02专业技术人员 | F76: 1 | G76: 89.5 | H76: 35.80 | I76: 第03考场 | J76: 66.00 | K76: 73.25 | L76: 26.40 | M76: 62.20
A77: 74 | B77: 李贤贤 | C77: 10125073203 | D77: 139西秀区宁谷镇卫生院（妇幼保健计划生育服务站） | E77: 01专业技术人员 | F77: 1 | G77: 73 | H77: 29.20 | I77: 第03考场 | J77: 68.60 | K77: 73.25 | L77: 27.44 | M77: 56.64
A78: 75 | B78: 田霞 | C78: 10125052325 | D78: 139西秀区宁谷镇卫生院（妇幼保健计划生育服务站） | E78: 01专业技术人员 | F78: 1 | G78: 69.5 | H78: 27.80 | I78: 第03考场 | J78: 71.00 | K78: 73.25 | L78: 28.40 | M78: 56.20
A79: 76 | B79: 伍朝亚 | C79: 10125092509 | D79: 139西秀区宁谷镇卫生院（妇幼保健计划生育服务站） | E79: 01专业技术人员 | F79: 1 | G79: 68 | H79: 27.20 | I79: 第03考场 | J79: 60.40 | K79: 73.25 | L79: 24.16 | M79: 51.36
A80: 77 | B80: 罗平 | C80: 10125050118 | D80: 140西秀区双堡镇卫生院（妇幼保健计划生育服务站） | E80: 01专业技术人员 | F80: 1 | G80: 83.5 | H80: 33.40 | I80: 第03考场 | J80: 74.60 | K80: 73.25 | L80: 29.84 | M80: 63.24
A81: 78 | B81: 刘洋 | C81: 10125030220 | D81: 140西秀区双堡镇卫生院（妇幼保健计划生育服务站） | E81: 01专业技术人员 | F81: 1 | G81: 77.5 | H81: 31.00 | I81: 第03考场 | J81: 78.00 | K81: 73.25 | L81: 31.20 | M81: 62.20
A82: 79 | B82: 朱明珍 | C82: 10125060409 | D82: 140西秀区双堡镇卫生院（妇幼保健计划生育服务站） | E82: 01专业技术人员 | F82: 1 | G82: 73.5 | H82: 29.40 | I82: 第03考场 | J82: 74.40 | K82: 73.25 | L82: 29.76 | M82: 59.16
A83: 80 | B83: 李凌雁 | C83: 10125071303 | D83: 142西秀区蔡官镇卫生院（妇幼保健计划生育服务站） | E83: 01专业技术人员 | F83: 1 | G83: 79.5 | H83: 31.80 | I83: 第03考场 | J83: 65.40 | K83: 73.25 | L83: 26.16 | M83: 57.96
A84: 81 | B84: 孔鹏 | C84: 10125061916 | D84: 142西秀区蔡官镇卫生院（妇幼保健计划生育服务站） | E84: 01专业技术人员 | F84: 1 | G84: 73.5 | H84: 29.40 | I84: 第03考场 | J84: 65.80 | K84: 73.25 | L84: 26.32 | M84: 55.72
A85: 82 | B85: 严国伟 | C85: 10125021823 | D85: 142西秀区蔡官镇卫生院（妇幼保健计划生育服务站） | E85: 01专业技术人员 | F85: 1 | G85: 70.5 | H85: 28.20 | I85: 第03考场 | J85: 缺考 | K85: 73.25
A86: 83 | B86: 龙飞海 | C86: 10125022530 | D86: 152西秀区育才学校 | E86: 01专业技术人员 | F86: 1 | G86: 72 | H86: 28.80 | I86: 第03考场 | J86: 76.20 | K86: 73.25 | L86: 30.48 | M86: =H86+L86 -> 59.28 | N86: 未达比例
A87: 84 | B87: 雷俊花 | C87: 10125080620 | D87: 166西秀区铁路子校 | E87: 01专业技术人员 | F87: 1 | G87: 62 | H87: 24.80 | I87: 第03考场 | J87: 71.20 | K87: 73.25 | L87: 28.48 | M87: 53.28 | N87: 未达比例
A88: 85 | B88: 吕庆娜 | C88: 10125070305 | D88: 166西秀区铁路子校 | E88: 01专业技术人员 | F88: 1 | G88: 61 | H88: 24.40 | I88: 第03考场 | J88: 67.60 | K88: 73.25 | L88: 27.04 | M88: 51.44 | N88: 未达比例
A89: 86 | B89: 迟绍智 | C89: 10125050923 | D89: 129西秀区财政局岩腊苗族布依族乡分局 | E89: 01管理人员 | F89: 1 | G89: 96.5 | H89: 38.60 | I89: 第04考场 | J89: 83.80 | K89: 77.37 | L89: 33.52 | M89: 72.12
A90: 87 | B90: 刘继红 | C90: 10125030807 | D90: 129西秀区财政局岩腊苗族布依族乡分局 | E90: 01管理人员 | F90: 1 | G90: 90 | H90: 36.00 | I90: 第04考场 | J90: 79.80 | K90: 77.37 | L90: 31.92 | M90: 67.92
A91: 88 | B91: 周定鹏 | C91: 10125081723 | D91: 129西秀区财政局岩腊苗族布依族乡分局 | E91: 01管理人员 | F91: 1 | G91: 90 | H91: 36.00 | I91: 第04考场 | J91: 78.40 | K91: 77.37 | L91: 31.36 | M91: 67.36
A92: 89 | B92: 杨恒 | C92: 10125061802 | D92: 129西秀区财政局岩腊苗族布依族乡分局 | E92: 01管理人员 | F92: 1 | G92: 91.5 | H92: 36.60 | I92: 第04考场 | J92: 76.00 | K92: 77.37 | L92: 30.40 | M92: 67.00
A93: 90 | B93: 李波 | C93: 10125070117 | D93: 142西秀区蔡官镇卫生院（妇幼保健计划生育服务站） | E93: 02专业技术人员 | F93: 1 | G93: 78 | H93: 31.20 | I93: 第04考场 | J93: 82.40 | K93: 77.37 | L93: 32.96 | M93: 64.16
A94: 91 | B94: 杜苏 | C94: 10125037814 | D94: 142西秀区蔡官镇卫生院（妇幼保健计划生育服务站） | E94: 02专业技术人员 | F94: 1 | G94: 75 | H94: 30.00 | I94: 第04考场 | J94: 74.80 | K94: 77.37 | L94: 29.92 | M94: 59.92
A95: 92 | B95: 罗莉兰 | C95: 10125022408 | D95: 142西秀区蔡官镇卫生院（妇幼保健计划生育服务站） | E95: 02专业技术人员 | F95: 1 | G95: 75 | H95: 30.00 | I95: 第04考场 | J95: 64.40 | K95: 77.37 | L95: 25.76 | M95: 55.76
A96: 93 | B96: 薛飞云 | C96: 10125051714 | D96: 143七眼桥卫生院（妇幼保健计划生育服务站） | E96: 01专业技术人员 | F96: 1 | G96: 66.5 | H96: 26.60 | I96: 第04考场 | J96: 81.40 | K96: 77.37 | L96: 32.56 | M96: 59.16
A97: 94 | B97: 罗华 | C97: 10125075621 | D97: 143七眼桥卫生院（妇幼保健计划生育服务站） | E97: 01专业技术人员 | F97: 1 | G97: 65 | H97: 26.00 | I97: 第04考场 | J97: 82.40 | K97: 77.37 | L97: 32.96 | M97: 58.96
A98: 95 | B98: 张云 | C98: 10125035312 | D98: 143七眼桥卫生院（妇幼保健计划生育服务站） | E98: 01专业技术人员 | F98: 1 | G98: 66 | H98: 26.40 | I98: 第04考场 | J98: 66.40 | K98: 77.37 | L98: 26.56 | M98: 52.96
A99: 96 | B99: 张萍 | C99: 10125073919 | D99: 149安顺市第五中学 | E99: 01专业技术人员 | F99: 1 | G99: 72.5 | H99: 29.00 | I99: 第04考场 | J99: 78.00 | K99: 77.37 | L99: 31.20 | M99: 60.20
A100: 97 | B100: 张梅 | C100: 10125022707 | D100: 149安顺市第五中学 | E100: 01专业技术人员 | F100: 1 | G100: 72 | H100: 28.80 | I100: 第04考场 | J100: 74.40 | K100: 77.37 | L100: 29.76 | M100: 58.56
A101: 98 | B101: 石晓雨 | C101: 10125082112 | D101: 149安顺市第五中学 | E101: 01专业技术人员 | F101: 1 | G101: 60.5 | H101: 24.20 | I101: 第04考场 | J101: 64.60 | K101: 77.37 | L101: 25.84 | M101: 50.04
A102: 99 | B102: 毛均玉 | C102: 10125081018 | D102: 151西秀区高级中学 | E102: 01专业技术人员 | F102: 1 | G102: 78 | H102: 31.20 | I102: 第04考场 | J102: 76.20 | K102: 77.37 | L102: 30.48 | M102: 61.68
A103: 100 | B103: 邓菲菲 | C103: 10125082707 | D103: 151西秀区高级中学 | E103: 01专业技术人员 | F103: 1 | G103: 81 | H103: 32.40 | I103: 第04考场 | J103: 69.60 | K103: 77.37 | L103: 27.84 | M103: 60.24
A104: 101 | B104: 张永兰 | C104: 10125092718 | D104: 151西秀区高级中学 | E104: 01专业技术人员 | F104: 1 | G104: 74.5 | H104: 29.80 | I104: 第04考场 | J104: 68.60 | K104: 77.37 | L104: 27.44 | M104: 57.24
A105: 102 | B105: 谢维娜 | C105: 10125050926 | D105: 169西秀区人民医院 | E105: 08专业技术人员 | F105: 1 | G105: 85.5 | H105: 34.20 | I105: 第04考场 | J105: 82.20 | K105: 77.37 | L105: 32.88 | M105: 67.08 | N105: 未达比例
A106: 103 | B106: 潘红璇 | C106: 10125020921 | D106: 169西秀区人民医院 | E106: 08专业技术人员 | F106: 1 | G106: 67.5 | H106: 27.00 | I106: 第04考场 | J106: 80.20 | K106: 77.37 | L106: 32.08 | M106: 59.08 | N106: 未达比例
A107: 104 | B107: 严琼亮 | C107: 10125063803 | D107: 171西秀区虹山人民医院 | E107: 01专业技术人员 | F107: 1 | G107: 64 | H107: 25.60 | I107: 第04考场 | J107: 73.40 | K107: 77.37 | L107: 29.36 | M107: 54.96 | N107: 未达比例
A108: 105 | B108: 刘艳 | C108: 10125038021 | D108: 172西秀区疾病预防控制中心 | E108: 02专业技术人员 | F108: 1 | G108: 102.5 | H108: 41.00 | I108: 第04考场 | J108: 88.80 | K108: 77.37 | L108: 35.52 | M108: 76.52
A109: 106 | B109: 杨倩 | C109: 10125062906 | D109: 172西秀区疾病预防控制中心 | E109: 02专业技术人员 | F109: 1 | G109: 108 | H109: 43.20 | I109: 第04考场 | J109: 81.40 | K109: 77.37 | L109: 32.56 | M109: 75.76
A110: 107 | B110: 姚茂 | C110: 10125061526 | D110: 172西秀区疾病预防控制中心 | E110: 03专业技术人员 | F110: 1 | G110: 104.5 | H110: 41.80 | I110: 第04考场 | J110: 84.00 | K110: 77.37 | L110: 33.60 | M110: 75.40
A111: 108 | B111: 罗祖宇 | C111: 10125052405 | D111: 172西秀区疾病预防控制中心 | E111: 01专业技术人员 | F111: 1 | G111: 97 | H111: 38.80 | I111: 第04考场 | J111: 89.40 | K111: 77.37 | L111: 35.76 | M111: 74.56
A112: 109 | B112: 肖玥 | C112: 10125014020 | D112: 172西秀区疾病预防控制中心 | E112: 03专业技术人员 | F112: 1 | G112: 102 | H112: 40.80 | I112: 第04考场 | J112: 80.20 | K112: 77.37 | L112: 32.08 | M112: 72.88
A113: 110 | B113: 李芸倩 | C113: 10125030521 | D113: 172西秀区疾病预防控制中心 | E113: 03专业技术人员 | F113: 1 | G113: 102.5 | H113: 41.00 | I113: 第04考场 | J113: 75.80 | K113: 77.37 | L113: 30.32 | M113: 71.32
A114: 111 | B114: 王优优 | C114: 10125083219 | D114: 172西秀区疾病预防控制中心 | E114: 02专业技术人员 | F114: 1 | G114: 99 | H114: 39.60 | I114: 第04考场 | J114: 74.80 | K114: 77.37 | L114: 29.92 | M114: 69.52
A115: 112 | B115: 闵庭 | C115: 10125052830 | D115: 172西秀区疾病预防控制中心 | E115: 01专业技术人员 | F115: 1 | G115: 93 | H115: 37.20 | I115: 第04考场 | J115: 77.60 | K115: 77.37 | L115: 31.04 | M115: 68.24
A116: 113 | B116: 梁美艳 | C116: 10125032317 | D116: 172西秀区疾病预防控制中心 | E116: 01专业技术人员 | F116: 1 | G116: 93.5 | H116: 37.40 | I116: 第04考场 | J116: 缺考 | K116: 77.37
A117: 114 | B117: 严辉 | C117: 10125050807 | D117: 113西秀区杨武布依族苗族乡人力资源和社会保障服务中心 | E117: 01管理人员 | F117: 1 | G117: 99.5 | H117: 39.80 | I117: 第05考场 | J117: 82.00 | K117: 76.53 | L117: 32.80 | M117: =H117+L117 -> 72.60
A118: 115 | B118: 屈凡 | C118: 10125070323 | D118: 113西秀区杨武布依族苗族乡人力资源和社会保障服务中心 | E118: 01管理人员 | F118: 1 | G118: 100 | H118: 40.00 | I118: 第05考场 | J118: 74.60 | K118: 76.53 | L118: 29.84 | M118: 69.84
A119: 116 | B119: 黄蕊 | C119: 10125033716 | D119: 113西秀区杨武布依族苗族乡人力资源和社会保障服务中心 | E119: 01管理人员 | F119: 1 | G119: 100 | H119: 40.00 | I119: 第05考场 | J119: 72.40 | K119: 76.53 | L119: 28.96 | M119: 68.96
A120: 117 | B120: 卢仁义 | C120: 10125012409 | D120: 114西秀区新场布依族苗族乡人力资源和社会保障服务中心 | E120: 01管理人员 | F120: 1 | G120: 87.5 | H120: 35.00 | I120: 第05考场 | J120: 76.80 | K120: 76.53 | L120: 30.72 | M120: 65.72
A121: 118 | B121: 顾伟刚 | C121: 10125031327 | D121: 114西秀区新场布依族苗族乡人力资源和社会保障服务中心 | E121: 01管理人员 | F121: 1 | G121: 79 | H121: 31.60 | I121: 第05考场 | J121: 76.60 | K121: 76.53 | L121: 30.64 | M121: 62.24
A122: 119 | B122: 陈家勇 | C122: 10125036615 | D122: 114西秀区新场布依族苗族乡人力资源和社会保障服务中心 | E122: 01管理人员 | F122: 1 | G122: 74.5 | H122: 29.80 | I122: 第05考场 | J122: 74.80 | K122: 76.53 | L122: 29.92 | M122: 59.72
A123: 120 | B123: 夏军 | C123: 10125022128 | D123: 115西秀区鸡场乡村镇建设管理站 | E123: 01专业技术人员 | F123: 1 | G123: 98.5 | H123: 39.40 | I123: 第05考场 | J123: 77.00 | K123: 76.53 | L123: 30.80 | M123: 70.20
A124: 121 | B124: 肖霄 | C124: 10125040201 | D124: 115西秀区鸡场乡村镇建设管理站 | E124: 01专业技术人员 | F124: 1 | G124: 89.5 | H124: 35.80 | I124: 第05考场 | J124: 69.00 | K124: 76.53 | L124: 27.60 | M124: 63.40
A125: 122 | B125: 唐劲松 | C125: 10125072521 | D125: 115西秀区鸡场乡村镇建设管理站 | E125: 01专业技术人员 | F125: 1 | G125: 92.5 | H125: 37.00 | I125: 第05考场 | J125: 缺考 | K125: 76.53
A126: 123 | B126: 吴锐 | C126: 10125082126 | D126: 116西秀区财政局刘官乡分局 | E126: 01管理人员 | F126: 1 | G126: 100.5 | H126: 40.20 | I126: 第05考场 | J126: 80.60 | K126: 76.53 | L126: 32.24 | M126: =H126+L126 -> 72.44
A127: 124 | B127: 徐海华 | C127: 10125037429 | D127: 116西秀区财政局刘官乡分局 | E127: 01管理人员 | F127: 1 | G127: 97 | H127: 38.80 | I127: 第05考场 | J127: 75.40 | K127: 76.53 | L127: 30.16 | M127: =H127+L127 -> 68.96
A128: 125 | B128: 余剑 | C128: 10125080402 | D128: 116西秀区财政局刘官乡分局 | E128: 01管理人员 | F128: 1 | G128: 94.5 | H128: 37.80 | I128: 第05考场 | J128: 73.00 | K128: 76.53 | L128: 29.20 | M128: =H128+L128 -> 67.00
A129: 126 | B129: 邓楠平 | C129: 10125063811 | D129: 117西秀区刘官乡扶贫工作站 | E129: 01管理人员 | F129: 1 | G129: 97 | H129: 38.80 | I129: 第05考场 | J129: 80.40 | K129: 76.53 | L129: 32.16 | M129: =H129+L129 -> 70.96
A130: 127 | B130: 吴运达 | C130: 10125061809 | D130: 117西秀区刘官乡扶贫工作站 | E130: 01管理人员 | F130: 1 | G130: 100.5 | H130: 40.20 | I130: 第05考场 | J130: 70.40 | K130: 76.53 | L130: 28.16 | M130: =H130+L130 -> 68.36
A131: 128 | B131: 吴政 | C131: 10125012927 | D131: 117西秀区刘官乡扶贫工作站 | E131: 01管理人员 | F131: 1 | G131: 98.5 | H131: 39.40 | I131: 第05考场 | J131: 缺考 | K131: 76.53
A132: 129 | B132: 张玄 | C132: 10125072417 | D132: 118西秀区黄腊布依族苗族乡扶贫工作站 | E132: 01管理人员 | F132: 1 | G132: 102 | H132: 40.80 | I132: 第05考场 | J132: 81.80 | K132: 76.53 | L132: 32.72 | M132: =H132+L132 -> 73.52
A133: 130 | B133: 肖家旺 | C133: 10125092218 | D133: 118西秀区黄腊布依族苗族乡扶贫工作站 | E133: 01管理人员 | F133: 1 | G133: 93 | H133: 37.20 | I133: 第05考场 | J133: 74.80 | K133: 76.53 | L133: 29.92 | M133: =H133+L133 -> 67.12
A134: 131 | B134: 何真材 | C134: 10125061904 | D134: 118西秀区黄腊布依族苗族乡扶贫工作站 | E134: 01管理人员 | F134: 1 | G134: 96 | H134: 38.40 | I134: 第05考场 | J134: 缺考 | K134: 76.53
A135: 132 | B135: 母丹琪 | C135: 10125071625 | D135: 122西秀区宁谷镇村镇建设管理站 | E135: 01管理人员 | F135: 1 | G135: 92.5 | H135: 37.00 | I135: 第05考场 | J135: 83.60 | K135: 76.53 | L135: 33.44 | M135: =H135+L135 -> 70.44
A136: 133 | B136: 谢高兴 | C136: 10125091520 | D136: 122西秀区宁谷镇村镇建设管理站 | E136: 01管理人员 | F136: 1 | G136: 95.5 | H136: 38.20 | I136: 第05考场 | J136: 79.60 | K136: 76.53 | L136: 31.84 | M136: 70.04
A137: 134 | B137: 杨伟 | C137: 10125033612 | D137: 122西秀区宁谷镇村镇建设管理站 | E137: 01管理人员 | F137: 1 | G137: 89.5 | H137: 35.80 | I137: 第05考场 | J137: 77.40 | K137: 76.53 | L137: 30.96 | M137: 66.76
A138: 135 | B138: 安洲汗 | C138: 10125090107 | D138: 123西秀区宁谷镇科技宣教文化信息服务中心 | E138: 01管理人员 | F138: 1 | G138: 103 | H138: 41.20 | I138: 第05考场 | J138: 82.00 | K138: 76.53 | L138: 32.80 | M138: 74.00
A139: 136 | B139: 饶海涛 | C139: 10125052429 | D139: 123西秀区宁谷镇科技宣教文化信息服务中心 | E139: 01管理人员 | F139: 1 | G139: 99.5 | H139: 39.80 | I139: 第05考场 | J139: 81.20 | K139: 76.53 | L139: 32.48 | M139: 72.28
A140: 137 | B140: 巴金 | C140: 10125081519 | D140: 123西秀区宁谷镇科技宣教文化信息服务中心 | E140: 01管理人员 | F140: 1 | G140: 103 | H140: 41.20 | I140: 第05考场 | J140: 69.60 | K140: 76.53 | L140: 27.84 | M140: 69.04
A141: 138 | B141: 张春春 | C141: 10125032202 | D141: 138西秀区黄腊布依族苗族乡卫生院（妇幼保健计划生育服务站） | E141: 01专业技术人员 | F141: 1 | G141: 68.5 | H141: 27.40 | I141: 第05考场 | J141: 69.60 | K141: 76.53 | L141: 27.84 | M141: 55.24 | N141: 未达比例
A142: 139 | B142: 陆丽佳 | C142: 10125073722 | D142: 144安顺市第一小学 | E142: 01专业技术人员 | F142: 1 | G142: 81 | H142: 32.40 | I142: 第05考场 | J142: 74.00 | K142: 76.53 | L142: 29.60 | M142: 62.00 | N142: 未达比例
A143: 140 | B143: 张晓芳 | C143: 10125082914 | D143: 145安顺市第八小学 | E143: 01专业技术人员 | F143: 1 | G143: 83 | H143: 33.20 | I143: 第05考场 | J143: 80.20 | K143: 76.53 | L143: 32.08 | M143: 65.28 | N143: 未达比例
A144: 141 | B144: 杨佳 | C144: 10125033318 | D144: 145安顺市第八小学 | E144: 01专业技术人员 | F144: 1 | G144: 69.5 | H144: 27.80 | I144: 第05考场 | J144: 缺考 | K144: 76.53
A145: 142 | B145: 杨越 | C145: 10125042405 | D145: 101西秀区财政局东街办事处分局 | E145: 01管理人员 | F145: 1 | G145: 105.5 | H145: 42.20 | I145: 第06考场 | J145: 77.60 | K145: 78.09 | L145: 31.04 | M145: =H145+L145 -> 73.24
A146: 143 | B146: 李海艺 | C146: 10125063327 | D146: 101西秀区财政局东街办事处分局 | E146: 01管理人员 | F146: 1 | G146: 99 | H146: 39.60 | I146: 第06考场 | J146: 79.40 | K146: 78.09 | L146: 31.76 | M146: =H146+L146 -> 71.36
A147: 144 | B147: 张慰慰 | C147: 10125062113 | D147: 101西秀区财政局东街办事处分局 | E147: 01管理人员 | F147: 1 | G147: 100 | H147: 40.00 | I147: 第06考场 | J147: 78.00 | K147: 78.09 | L147: 31.20 | M147: =H147+L147 -> 71.20
A148: 145 | B148: 翟晓丽 | C148: 10125034409 | D148: 102西秀区东街办事处人力资源和社会保障服务中心 | E148: 01管理人员 | F148: 1 | G148: 103.5 | H148: 41.40 | I148: 第06考场 | J148: 81.20 | K148: 78.09 | L148: 32.48 | M148: =H148+L148 -> 73.88
A149: 146 | B149: 王荣涓 | C149: 10125021826 | D149: 102西秀区东街办事处人力资源和社会保障服务中心 | E149: 01管理人员 | F149: 1 | G149: 101.5 | H149: 40.60 | I149: 第06考场 | J149: 77.80 | K149: 78.09 | L149: 31.12 | M149: =H149+L149 -> 71.72
A150: 147 | B150: 程斯 | C150: 10125011720 | D150: 102西秀区东街办事处人力资源和社会保障服务中心 | E150: 01管理人员 | F150: 1 | G150: 101.5 | H150: 40.60 | I150: 第06考场 | J150: 缺考 | K150: 78.09
A151: 148 | B151: 汪学丹 | C151: 10125082705 | D151: 103西秀区财政局南街办事处分局 | E151: 01管理人员 | F151: 1 | G151: 118.5 | H151: 47.40 | I151: 第06考场 | J151: 79.80 | K151: 78.09 | L151: 31.92 | M151: =H151+L151 -> 79.32
A152: 149 | B152: 高倩 | C152: 10125051505 | D152: 103西秀区财政局南街办事处分局 | E152: 01管理人员 | F152: 1 | G152: 97.5 | H152: 39.00 | I152: 第06考场 | J152: 81.20 | K152: 78.09 | L152: 32.48 | M152: =H152+L152 -> 71.48
A153: 150 | B153: 黄福莹 | C153: 10125033222 | D153: 103西秀区财政局南街办事处分局 | E153: 01管理人员 | F153: 1 | G153: 97.5 | H153: 39.00 | I153: 第06考场 | J153: 76.40 | K153: 78.09 | L153: 30.56 | M153: =H153+L153 -> 69.56
A154: 151 | B154: 王珊瑚 | C154: 10125012306 | D154: 103西秀区财政局南街办事处分局 | E154: 01管理人员 | F154: 1 | G154: 98.5 | H154: 39.40 | I154: 第06考场 | J154: 缺考 | K154: 78.09
A155: 152 | B155: 郑捷 | C155: 10125035503 | D155: 104西秀区西街办事处人力资源和社会保障服务中心 | E155: 01管理人员 | F155: 1 | G155: 109 | H155: 43.60 | I155: 第06考场 | J155: 84.00 | K155: 78.09 | L155: 33.60 | M155: =H155+L155 -> 77.20
A156: 153 | B156: 肖锐 | C156: 10125031928 | D156: 104西秀区西街办事处人力资源和社会保障服务中心 | E156: 01管理人员 | F156: 1 | G156: 103.5 | H156: 41.40 | I156: 第06考场 | J156: 82.00 | K156: 78.09 | L156: 32.80 | M156: 74.20
A157: 154 | B157: 胡兴 | C157: 10125074616 | D157: 104西秀区西街办事处人力资源和社会保障服务中心 | E157: 01管理人员 | F157: 1 | G157: 106.5 | H157: 42.60 | I157: 第06考场 | J157: 78.20 | K157: 78.09 | L157: 31.28 | M157: 73.88
A158: 155 | B158: 聂城俊 | C158: 10125070704 | D158: 106西秀区东关办事处安全生产监督管理站 | E158: 01管理人员 | F158: 1 | G158: 109.5 | H158: 43.80 | I158: 第06考场 | J158: 78.00 | K158: 78.09 | L158: 31.20 | M158: 75.00
A159: 156 | B159: 孙慧 | C159: 10125036726 | D159: 106西秀区东关办事处安全生产监督管理站 | E159: 01管理人员 | F159: 1 | G159: 105 | H159: 42.00 | I159: 第06考场 | J159: 81.40 | K159: 78.09 | L159: 32.56 | M159: 74.56
A160: 157 | B160: 张祥云 | C160: 10125081214 | D160: 106西秀区东关办事处安全生产监督管理站 | E160: 01管理人员 | F160: 1 | G160: 105 | H160: 42.00 | I160: 第06考场 | J160: 81.00 | K160: 78.09 | L160: 32.40 | M160: 74.40
A161: 158 | B161: 孟璇 | C161: 10125035516 | D161: 106西秀区东关办事处安全生产监督管理站 | E161: 01管理人员 | F161: 1 | G161: 105 | H161: 42.00 | I161: 第06考场 | J161: 77.00 | K161: 78.09 | L161: 30.80 | M161: 72.80
A162: 159 | B162: 王家婷 | C162: 10125032926 | D162: 107西秀区凤凰社区服务中心 | E162: 01管理人员 | F162: 1 | G162: 105.5 | H162: 42.20 | I162: 第06考场 | J162: 81.00 | K162: 78.09 | L162: 32.40 | M162: 74.60
A163: 160 | B163: 赵聪 | C163: 10125070818 | D163: 107西秀区凤凰社区服务中心 | E163: 01管理人员 | F163: 1 | G163: 101 | H163: 40.40 | I163: 第06考场 | J163: 79.60 | K163: 78.09 | L163: 31.84 | M163: 72.24
A164: 161 | B164: 尚秋铜 | C164: 10125080716 | D164: 107西秀区凤凰社区服务中心 | E164: 01管理人员 | F164: 1 | G164: 98.5 | H164: 39.40 | I164: 第06考场 | J164: 79.80 | K164: 78.09 | L164: 31.92 | M164: 71.32
A165: 162 | B165: 曾爱勤 | C165: 10125071521 | D165: 107西秀区凤凰社区服务中心 | E165: 01管理人员 | F165: 1 | G165: 98.5 | H165: 39.40 | I165: 第06考场 | J165: 缺考 | K165: 78.09
A166: 163 | B166: 梅霞 | C166: 10125036512 | D166: 108西秀区马槽社区服务中心 | E166: 01管理人员 | F166: 1 | G166: 99.5 | H166: 39.80 | I166: 第06考场 | J166: 77.00 | K166: 78.09 | L166: 30.80 | M166: =H166+L166 -> 70.60
A167: 164 | B167: 吴淑媛 | C167: 10125064427 | D167: 108西秀区马槽社区服务中心 | E167: 01管理人员 | F167: 1 | G167: 95 | H167: 38.00 | I167: 第06考场 | J167: 78.40 | K167: 78.09 | L167: 31.36 | M167: 69.36
A168: 165 | B168: 王沙 | C168: 10125014110 | D168: 108西秀区马槽社区服务中心 | E168: 01管理人员 | F168: 1 | G168: 95.5 | H168: 38.20 | I168: 第06考场 | J168: 76.00 | K168: 78.09 | L168: 30.40 | M168: 68.60
A169: 166 | B169: 舒松 | C169: 10125072405 | D169: 108西秀区马槽社区服务中心 | E169: 01管理人员 | F169: 1 | G169: 95 | H169: 38.00 | I169: 第06考场 | J169: 72.60 | K169: 78.09 | L169: 29.04 | M169: 67.04
A170: 167 | B170: 胡英 | C170: 10125063005 | D170: 119西秀区黄腊布依族苗族乡科技宣教文化信息服务中心 | E170: 01管理人员 | F170: 1 | G170: 71 | H170: 28.40 | I170: 第06考场 | J170: 66.40 | K170: 78.09 | L170: 26.56 | M170: 54.96 | N170: 未达比例
A171: 168 | B171: 张尚媛 | C171: 10125050402 | D171: 134西秀区南街办事处妇幼保健计划生育服务站 | E171: 01专业技术人员 | F171: 1 | G171: 64.5 | H171: 25.80 | I171: 第06考场 | J171: 70.40 | K171: 78.09 | L171: 28.16 | M171: 53.96 | N171: 未达比例
A172: 169 | B172: 袁美美 | C172: 10125022516 | D172: 135西秀区华西办事处卫生院（妇幼保健计划生育服务站） | E172: 02专业技术人员 | F172: 1 | G172: 81 | H172: 32.40 | I172: 第06考场 | J172: 78.00 | K172: 78.09 | L172: 31.20 | M172: 63.60 | N172: 未达比例
A173: 170 | B173: 余燕 | C173: 10125073325 | D173: 135西秀区华西办事处卫生院（妇幼保健计划生育服务站） | E173: 02专业技术人员 | F173: 1 | G173: 63 | H173: 25.20 | I173: 第06考场 | J173: 缺考 | K173: 78.09
A174: 171 | B174: 陈潞蓉 | C174: 10125031729 | D174: 146西秀区北关小学 | E174: 02专业技术人员（小学数学教师） | F174: 1 | G174: 80 | H174: 32.00 | I174: 第07考场 | J174: 81.20 | L174: 32.48 | M174: =H174+L174 -> 64.48
A175: 172 | B175: 杨晓艳 | C175: 10125081627 | D175: 146西秀区北关小学 | E175: 02专业技术人员（小学数学教师） | F175: 1 | G175: 79.5 | H175: 31.80 | I175: 第07考场 | J175: 77.80 | L175: 31.12 | M175: =H175+L175 -> 62.92
A176: 173 | B176: 孙艳敏 | C176: 10125050319 | D176: 146西秀区北关小学 | E176: 02专业技术人员（小学数学教师） | F176: 1 | G176: 76.5 | H176: 30.60 | I176: 第07考场 | J176: 缺考
A177: 174 | B177: 黄钰苹 | C177: 10125035103 | D177: 154西秀区华西办事处黑石头小学 | E177: 01专业技术人员（小学数学教师） | F177: 1 | G177: 88 | H177: 35.20 | I177: 第07考场 | J177: 88.80 | L177: 35.52 | M177: =H177+L177 -> 70.72
A178: 175 | B178: 冷晓霞 | C178: 10125013517 | D178: 154西秀区华西办事处黑石头小学 | E178: 01专业技术人员（小学数学教师） | F178: 1 | G178: 86.5 | H178: 34.60 | I178: 第07考场 | J178: 76.20 | L178: 30.48 | M178: =H178+L178 -> 65.08
A179: 176 | B179: 肖敏 | C179: 10125072119 | D179: 155西秀区虹湖小学 | E179: 01专业技术人员（小学数学教师） | F179: 2 | G179: 90 | H179: 36.00 | I179: 第07考场 | J179: 81.20 | L179: 32.48 | M179: =H179+L179 -> 68.48
A180: 177 | B180: 邓军凯 | C180: 10125083027 | D180: 155西秀区虹湖小学 | E180: 01专业技术人员（小学数学教师） | F180: 2 | G180: 84 | H180: 33.60 | I180: 第07考场 | J180: 86.80 | L180: 34.72 | M180: =H180+L180 -> 68.32
A181: 178 | B181: 高志琴 | C181: 10125040830 | D181: 155西秀区虹湖小学 | E181: 01专业技术人员（小学数学教师） | F181: 2 | G181: 80.5 | H181: 32.20 | I181: 第07考场 | J181: 75.20 | L181: 30.08 | M181: =H181+L181 -> 62.28
A182: 179 | B182: 曾榆婷 | C182: 10125072614 | D182: 155西秀区虹湖小学 | E182: 01专业技术人员（小学数学教师） | F182: 2 | G182: 98.5 | H182: 39.40 | I182: 第07考场 | J182: 缺考
A183: 180 | B183: 黎娜娜 | C183: 10125074802 | D183: 155西秀区虹湖小学 | E183: 01专业技术人员（小学数学教师） | F183: 2 | G183: 84.5 | H183: 33.80 | I183: 第07考场 | J183: 缺考
A184: 181 | B184: 汪洪 | C184: 10125036916 | D184: 157西秀区轿子山镇中心小学 | E184: 02专业技术人员（小学数学教师） | F184: 2 | G184: 85.5 | H184: 34.20 | I184: 第07考场 | J184: 81.60 | L184: 32.64 | M184: =H184+L184 -> 66.84
A185: 182 | B185: 何元武 | C185: 10125092317 | D185: 157西秀区轿子山镇中心小学 | E185: 02专业技术人员（小学数学教师） | F185: 2 | G185: 82 | H185: 32.80 | I185: 第07考场 | J185: 81.60 | L185: 32.64 | M185: 65.44
A186: 183 | B186: 杨琪 | C186: 10125061909 | D186: 157西秀区轿子山镇中心小学 | E186: 02专业技术人员（小学数学教师） | F186: 2 | G186: 79.5 | H186: 31.80 | I186: 第07考场 | J186: 79.20 | L186: 31.68 | M186: 63.48
A187: 184 | B187: 樊小兰 | C187: 10125022313 | D187: 157西秀区轿子山镇中心小学 | E187: 02专业技术人员（小学数学教师） | F187: 2 | G187: 67.5 | H187: 27.00 | I187: 第07考场 | J187: 79.80 | L187: 31.92 | M187: 58.92
A188: 185 | B188: 龙飞 | C188: 10125011007 | D188: 159西秀区轿子山镇青山小学 | E188: 01专业技术人员（小学数学教师） | F188: 2 | G188: 86 | H188: 34.40 | I188: 第07考场 | J188: 79.60 | L188: 31.84 | M188: 66.24
A189: 186 | B189: 屈此莹 | C189: 10125038011 | D189: 159西秀区轿子山镇青山小学 | E189: 01专业技术人员（小学数学教师） | F189: 2 | G189: 78 | H189: 31.20 | I189: 第07考场 | J189: 82.60 | L189: 33.04 | M189: 64.24
A190: 187 | B190: 冷小唯 | C190: 10125031823 | D190: 159西秀区轿子山镇青山小学 | E190: 01专业技术人员（小学数学教师） | F190: 2 | G190: 67.5 | H190: 27.00 | I190: 第07考场 | J190: 79.40 | L190: 31.76 | M190: 58.76
A191: 188 | B191: 李文艳 | C191: 10125010625 | D191: 159西秀区轿子山镇青山小学 | E191: 01专业技术人员（小学数学教师） | F191: 2 | G191: 64 | H191: 25.60 | I191: 第07考场 | J191: 82.60 | L191: 33.04 | M191: 58.64
A192: 189 | B192: 石青秀 | C192: 10125010823 | D192: 159西秀区轿子山镇青山小学 | E192: 01专业技术人员（小学数学教师） | F192: 2 | G192: 60.5 | H192: 24.20 | I192: 第07考场 | J192: 76.60 | L192: 30.64 | M192: 54.84
A193: 190 | B193: 张迪 | C193: 10125062517 | D193: 160西秀区蔡官镇蔡官屯小学 | E193: 02专业技术人员（小学数学教师） | F193: 1 | G193: 78.5 | H193: 31.40 | I193: 第07考场 | J193: 81.60 | L193: 32.64 | M193: 64.04
A194: 191 | B194: 万忠磊 | C194: 10125020724 | D194: 164西秀区大西桥镇中心小学 | E194: 01专业技术人员（小学数学教师） | F194: 2 | G194: 84.5 | H194: 33.80 | I194: 第07考场 | J194: 81.40 | L194: 32.56 | M194: 66.36
A195: 192 | B195: 邱飘飘 | C195: 10125091503 | D195: 164西秀区大西桥镇中心小学 | E195: 01专业技术人员（小学数学教师） | F195: 2 | G195: 77 | H195: 30.80 | I195: 第07考场 | J195: 83.80 | L195: 33.52 | M195: 64.32
A196: 193 | B196: 邓贵 | C196: 10125061124 | D196: 164西秀区大西桥镇中心小学 | E196: 01专业技术人员（小学数学教师） | F196: 2 | G196: 80 | H196: 32.00 | I196: 第07考场 | J196: 74.40 | L196: 29.76 | M196: 61.76
A197: 194 | B197: 杨小芳 | C197: 10125081324 | D197: 164西秀区大西桥镇中心小学 | E197: 01专业技术人员（小学数学教师） | F197: 2 | G197: 84.5 | H197: 33.80 | I197: 第07考场 | J197: 缺考
A198: 195 | B198: 徐洋雯 | C198: 10125080929 | D198: 164西秀区大西桥镇中心小学 | E198: 01专业技术人员（小学数学教师） | F198: 2 | G198: 72 | H198: 28.80 | I198: 第07考场 | J198: 缺考
A199: 196 | B199: 龙琴 | C199: 10125020230 | D199: 166西秀区铁路子校 | E199: 02专业技术人员（小学数学教师） | F199: 1 | G199: 90 | H199: 36.00 | I199: 第07考场 | J199: 82.60 | L199: 33.04 | M199: =H199+L199 -> 69.04
A200: 197 | B200: 郭小艳 | C200: 10125021127 | D200: 166西秀区铁路子校 | E200: 02专业技术人员（小学数学教师） | F200: 1 | G200: 83 | H200: 33.20 | I200: 第07考场 | J200: 79.60 | L200: 31.84 | M200: =H200+L200 -> 65.04
... 84 more rows
